fUST/lending_fUST_20240430
["ID","MTS","AMOUNT","RATE_DAILY","PERIOD"]
[324956733,1714468239136,-199.8929869,0.0002,2]
[324956734,1714468239145,-241.71320654,0.0002,2]
[324956735,1714468239155,-67426.19859378,0.0002,2]
[324956736,1714468239164,-329.99389325,0.0002,2]
[324956737,1714468239174,-10481.54893926,0.0002,2]
[324956738,1714468239183,-80000.0,0.0002,2]
[324956739,1714468239192,-154.78330338,0.0002,2]
[324956740,1714468239201,-39146.36994841,0.0002,2]
[324956741,1714468239210,-5767.31631135,0.0002,2]
[324956742,1714468239220,-154.79876161,0.0002,2]
[324956743,1714468239229,-155.18345752,0.0002,2]
[324956744,1714468239238,-400.0,0.0002,2]
[324956745,1714468239248,-278.367607,0.0002,2]
[324956746,1714468239257,-123106.86543071,0.0002,2]
[324956747,1714468239266,-285.23432465,0.0002,2]
[324956748,1714468239275,-321.919457,0.0002,2]
[324956749,1714468239284,-154.79876161,0.0002,2]
[324956750,1714468239294,-525.07533493,0.0002,4]
[324956751,1714468239304,-200.0,0.0002,2]
[324956752,1714468239313,-3000.0,0.00020547,2]
[324956753,1714468239325,-3000.0,0.00020547,2]
[324956754,1714468239335,-3000.0,0.00020547,2]
[324956755,1714468239344,-3000.0,0.00020547,2]
[324956756,1714468239353,-3000.0,0.00020547,2]
[324956757,1714468239362,-3000.0,0.00020547,2]
[324956758,1714468239372,-28461.57173674,0.000208,2]
[324956759,1714468239381,-300.0,0.00020912,2]
[324956760,1714468239391,-1444.69307391,0.00021,5]
[324956761,1714468239400,-160.0,0.00021652,2]
[324956762,1714468239410,-613.2773995,0.00021918,2]
[324956763,1714468239419,-10000.0,0.00021918,2]
[324956764,1714468239429,-305.6041892,0.00022,2]
[324956765,1714468239438,-579.23325609,0.0002209,2]
[324956766,1714468239448,-320.0,0.000222,2]
[324956767,1714468239457,-44444.0,0.000224,3]
[324956768,1714468239467,-178.983247,0.00022466,2]
[324956769,1714468239476,-3000.0,0.00022499,2]
[324956770,1714468239485,-1564.25196696,0.000225,2]
[324956771,1714468239495,-10598.56422738,0.000225,2]
[324956772,1714468239504,-154.79876161,0.000225,2]
[324956773,1714468239514,-154.79876161,0.000225,2]
[324956774,1714468239523,-2000.0,0.000225,2]
[324956775,1714468239532,-202.16473977,0.000225,2]
[324956776,1714468239542,-1297.83986334,0.000225,2]
[324956777,1714468239551,-334.27940594,0.000225,2]
[324956778,1714468239561,-480.0,0.00022748,2]
[324956779,1714468239573,-1370.77204514,0.00023,2]
[324956780,1714468239582,-420.0,0.00023003,2]
[324956781,1714468239591,-640.0,0.00023296,2]
[324956782,1714468239601,-1193.8816666,0.00023408,2]
[324956783,1714468239610,-308.29704128,0.00023844,2]
[324956784,1714468239620,-1173.4450898,0.000239,2]
[324956785,1714468239629,-693.45686249,0.00024,2]
[324956786,1714468239640,-579.23325609,0.0002428,2]
[324956787,1714468239649,-648.69408333,0.00024578,2]
[324956788,1714468239659,-500.0,0.00024657,2]
[324956789,1714468239668,-500.0,0.00024657,2]
[324956790,1714468239677,-380.0,0.00024658,2]
[324956791,1714468239686,-200.0,0.00024658,15]
[324956792,1714468239696,-200.0,0.00024658,2]
[324956793,1714468239705,-500.0,0.00024712,2]
[324956794,1714468239714,-500.0,0.00024767,2]
[324956795,1714468239723,-500.0,0.00024821,2]
[324956796,1714468239733,-500.0,0.00024876,2]
[324956797,1714468239743,-449.68632785,0.00024884,2]
[324956798,1714468239752,-500.0,0.00024931,2]
[324956799,1714468239761,-500.0,0.00024986,2]
[324956800,1714468239770,-154.78330338,0.00025,2]
[324956801,1714468239779,-154.78330338,0.00025,2]
[324956802,1714468239789,-154.79876161,0.00025,2]
[324956803,1714468239800,-154.79876161,0.00025,2]
[324956804,1714468239810,-155.088,0.00025,15]
[324956805,1714468239822,-500.0,0.00025041,2]
[324956806,1714468239833,-500.0,0.00025095,2]
[324956807,1714468239842,-500.0,0.0002515,2]
[324956809,1714468239853,-500.0,0.00025205,2]
[324956810,1714468239864,-500.0,0.0002526,2]
[324956811,1714468239874,-587.0,0.00025303,2]
[324956812,1714468239883,-500.0,0.00025315,2]
[324956814,1714468239892,-500.0,0.00025369,2]
[324956816,1714468239901,-500.0,0.00025424,2]
[324956817,1714468239910,-500.0,0.00025479,2]
[324956818,1714468239920,-500.0,0.00025534,2]
[324956819,1714468239930,-500.0,0.00025589,2]
[324956820,1714468239939,-500.0,0.00025643,2]
[324956821,1714468239948,-152.90057792,0.00025687,2]
[324956822,1714468239958,-500.0,0.00025698,2]
[324956823,1714468239967,-152.90057792,0.00025734,2]
[324956824,1714468239976,-500.0,0.00025753,2]
[324956825,1714468239985,-621.43470417,0.00025807,2]
[324956826,1714468239995,-500.0,0.00025808,2]
[324956827,1714468240004,-500.0,0.00025863,2]
[324956828,1714468240013,-206.56888876,0.00025917,2]
[324956829,1714468240022,-157.73975448,0.00025951,2]
[324956830,1714468240031,-2500.0,0.00026,2]
[324956831,1714468240040,-2822.94323981,0.00026,9]
[324956832,1714468240050,-5000.0,0.00026,2]
[324956833,1714468240059,-449.68632785,0.00026361,2]
[324956834,1714468240071,-579.23325609,0.0002647,2]
[324956835,1714468240080,-152.79752244,0.00026515,2]
[324956836,1714468240089,-3000.0,0.00026682,2]
[324956837,1714468240099,-8529.21181525,0.00027,2]
[324956838,1714468240107,-620.07173521,0.00027098,2]
[324956839,1714468240117,-166.666666,0.00027397,2]
[324956841,1714468240126,-154.81422293,0.000274,2]
[324956842,1714468240136,-155.21372883,0.00027771,2]
[324956845,1714468240145,-823.0,0.00027833,2]
[324956846,1714468240154,-220.93587945,0.00028,2]
[324956848,1714468240163,-166.666666,0.00028038,2]
[324956850,1714468240173,-936.3,0.00028082,3]
[324956852,1714468240182,-449.68632785,0.00028114,2]
[324956854,1714468240190,-449.68632785,0.00028144,2]
[324956856,1714468240199,-155.21372883,0.00028274,2]
[324956857,1714468240209,-152.90057792,0.0002831,2]
[324956859,1714468240218,-449.68632785,0.00028362,2]
[324956861,1714468240227,-619.99999999,0.00028382,2]
[324956863,1714468240237,-620.00358676,0.00028453,2]
[324956864,1714468240249,-449.68632785,0.00028483,2]
[324956865,1714468240258,-436.25,0.00028554,2]
[324956866,1714468240267,-150.0,0.00028554,2]
[324956867,1714468240276,-152.90057792,0.00028562,2]
[324956868,1714468240286,-579.23325609,0.0002866,2]
[324956869,1714468240296,-166.666666,0.00028679,2]
[324956870,1714468240306,-3000.0,0.00028691,10]
[324956871,1714468240317,-183092.43493621,0.0002876,2]
[324956872,1714468240326,-151.0,0.0002876,2]
[324956873,1714468240335,-151.0,0.0002876,2]
[324956874,1714468240343,-151.0,0.0002876,2]
[324956875,1714468240350,-151.0,0.0002876,2]
[324956876,1714468240359,-151.0,0.0002876,2]
[324956877,1714468240368,-151.0,0.0002876,2]
[324956878,1714468240377,-151.0,0.0002876,2]
[324956880,1714468240387,-481.500133,0.0002876,2]
[324956882,1714468240396,-481.500133,0.0002876,2]
[324956884,1714468240405,-287.463919,0.0002876,2]
[324956885,1714468240414,-287.463919,0.0002876,2]
[324956887,1714468240423,-154.295428,0.0002876,2]
[324956889,1714468240432,-151.0,0.0002876,2]
[324956890,1714468240441,-241.674438,0.0002876,2]
[324956892,1714468240450,-241.674438,0.0002876,2]
[324956894,1714468240459,-151.0,0.0002876,2]
[324956895,1714468240468,-183.679574,0.0002876,2]
[324956897,1714468240477,-1223.237364,0.0002876,2]
[324956899,1714468240487,-1223.237364,0.0002876,2]
[324956901,1714468240496,-282.553716,0.0002876,2]
[324956903,1714468240505,-282.553716,0.0002876,2]
[324956904,1714468240515,-151.0,0.0002876,2]
[324956906,1714468240524,-151.068906,0.0002876,2]
[324956907,1714468240533,-151.0,0.0002876,2]
[324956908,1714468240543,-516.200641,0.0002876,2]
[324956909,1714468240552,-516.200641,0.0002876,2]
[324956910,1714468240561,-151.0,0.0002876,2]
[324956911,1714468240574,-151.0,0.0002876,2]
[324956912,1714468240584,-160.103392,0.0002876,2]
[324956913,1714468240593,-1657.029011,0.0002876,2]
[324956914,1714468240602,-1657.029011,0.0002876,2]
[324956915,1714468240611,-151.0,0.0002876,2]
[324956916,1714468240620,-151.0,0.0002876,2]
[324956917,1714468240629,-172.877711,0.0002876,2]
[324956918,1714468240639,-172.877711,0.0002876,2]
[324956919,1714468240648,-151.0,0.0002876,2]
[324956920,1714468240657,-151.0,0.0002876,2]
[324956921,1714468240667,-151.0,0.0002876,2]
[324956922,1714468240676,-581.433656,0.0002876,2]
[324956923,1714468240685,-581.433656,0.0002876,2]
[324956924,1714468240694,-151.0,0.0002876,2]
[324956925,1714468240704,-583.303269,0.0002876,2]
[324956926,1714468240713,-151.0,0.0002876,2]
[324956927,1714468240723,-583.303269,0.0002876,2]
[324956928,1714468240732,-921.307316,0.0002876,2]
[324956929,1714468240741,-921.307316,0.0002876,2]
[324956930,1714468240751,-3579.881148,0.0002876,2]
[324956931,1714468240760,-3579.881148,0.0002876,2]
[324956932,1714468240769,-644.114693,0.0002876,2]
[324956933,1714468240778,-644.114693,0.0002876,2]
[324956934,1714468240787,-151.0,0.0002876,2]
[324956935,1714468240796,-151.0,0.0002876,2]
[324956936,1714468240805,-151.0,0.0002876,2]
[324956937,1714468240818,-643.461157,0.0002876,2]
[324956938,1714468240829,-151.0,0.0002876,2]
[324956939,1714468240840,-3149.40616,0.0002876,2]
[324956940,1714468240849,-643.461157,0.0002876,2]
[324956941,1714468240860,-3149.40616,0.0002876,2]
[324956942,1714468240869,-176.275583,0.0002876,2]
[324956943,1714468240880,-98221.61630775,0.0002877,2]
[324956944,1714468240889,-1223.237364,0.0002877,2]
[324956945,1714468240898,-1223.237364,0.0002877,2]
[324956946,1714468240907,-151.0,0.0002877,2]
[324956947,1714468240916,-151.0,0.0002877,2]
[324956948,1714468240926,-151.0,0.0002877,2]
[324956949,1714468240936,-1657.029011,0.0002877,2]
[324956950,1714468240945,-1657.029011,0.0002877,2]
[324956951,1714468240955,-151.0,0.0002877,2]
[324956952,1714468240964,-151.0,0.0002877,2]
[324956953,1714468240973,-172.877711,0.0002877,2]
[324956954,1714468240982,-172.877711,0.0002877,2]
[324956955,1714468240991,-151.0,0.0002877,2]
[324956956,1714468241001,-151.0,0.0002877,2]
[324956957,1714468241010,-151.293733,0.0002877,2]
[324956958,1714468241020,-581.433656,0.0002877,2]
[324956959,1714468241029,-581.433656,0.0002877,2]
[324956960,1714468241038,-152.107121,0.0002877,2]
[324956961,1714468241048,-583.303269,0.0002877,2]
[324956962,1714468241059,-151.0,0.0002877,2]
[324956963,1714468241070,-583.303269,0.0002877,2]
[324956964,1714468241079,-921.307316,0.0002877,2]
[324956965,1714468241088,-921.307316,0.0002877,2]
[324956966,1714468241097,-3579.881148,0.0002877,2]
[324956967,1714468241107,-3579.881148,0.0002877,2]
[324956968,1714468241116,-644.114693,0.0002877,2]
[324956969,1714468241125,-644.114693,0.0002877,2]
[324956970,1714468241134,-151.0,0.0002877,2]
[324956971,1714468241143,-151.0,0.0002877,2]
[324956972,1714468241152,-151.0,0.0002877,2]
[324956973,1714468241162,-643.461157,0.0002877,2]
[324956974,1714468241171,-151.0,0.0002877,2]
[324956975,1714468241180,-3149.40616,0.0002877,2]
[324956976,1714468241189,-643.461157,0.0002877,2]
[324956977,1714468241198,-3149.40616,0.0002877,2]
[324956978,1714468241209,-176.275583,0.0002877,2]
[324956979,1714468241218,-155.21372883,0.00028803,2]
[324956980,1714468241227,-153.8921486,0.00028855,2]
[324956981,1714468241236,-449.68632785,0.00028872,2]
[324956982,1714468241246,-152.90057792,0.00028881,2]
[324956983,1714468241257,-1173.4450898,0.000289,2]
[324956984,1714468241266,-155.21372883,0.00028934,2]
[324956985,1714468241275,-154.79876161,0.00029,3]
[324956986,1714468241285,-449.68632785,0.00029199,2]
[324956987,1714468241294,-155.21372883,0.000292,2]
[324956988,1714468241303,-152.79752244,0.00029263,2]
[324956989,1714468241312,-166.666666,0.00029321,2]
[324956990,1714468241324,-155.21372883,0.00029497,2]
[324956991,1714468241333,-200.0,0.000295,7]
[324956992,1714468241342,-936.3,0.00029514,3]
[324956993,1714468241352,-157.73975448,0.00029847,2]
[324956994,1714468241361,-620.00017934,0.00029875,2]
[324956995,1714468241371,-241.674438,0.00029875,2]
[324956996,1714468241380,-241.674438,0.00029875,2]
[324956997,1714468241389,-151.0,0.00029875,2]
[324956998,1714468241398,-282.553716,0.00029875,2]
[324956999,1714468241407,-282.553716,0.00029875,2]
[324957000,1714468241417,-151.0,0.00029875,2]
[324957001,1714468241426,-516.200641,0.00029875,2]
[324957002,1714468241435,-516.200641,0.00029875,2]
[324957003,1714468241445,-51819.76078572,0.000299,2]
[324957004,1714468241454,-151.0,0.000299,2]
[324957005,1714468241463,-151.214711,0.000299,2]
[324957006,1714468241472,-151.298486,0.000299,2]
[324957007,1714468241482,-151.0,0.000299,2]
[324957008,1714468241492,-273.937009,0.000299,2]
[324957009,1714468241501,-273.937009,0.000299,2]
[324957010,1714468241511,-151.0,0.000299,2]
[324957011,1714468241520,-151.0,0.000299,2]
[324957012,1714468241529,-151.0,0.000299,2]
[324957013,1714468241539,-151.0,0.000299,2]
[324957014,1714468241548,-277.969995,0.000299,2]
[324957015,1714468241557,-151.484252,0.000299,2]
[324957016,1714468241567,-151.213274,0.000299,2]
[324957017,1714468241576,-481.500133,0.000299,2]
[324957018,1714468241585,-481.500133,0.000299,2]
[324957019,1714468241594,-287.463919,0.000299,2]
[324957020,1714468241603,-287.463919,0.000299,2]
[324957021,1714468241612,-151.0,0.000299,2]
[324957022,1714468241621,-224.44108597,0.00029916,2]
[324957023,1714468241631,-166.666666,0.00029962,2]
[324957024,1714468241640,-1900.02434615,0.0003,4]
[324957025,1714468241650,-154.78330338,0.0003,4]
[324957026,1714468241661,-264648.10530181,0.0003,2]
[324957027,1714468241670,-151.0,0.0003,2]
[324957028,1714468241679,-151.0,0.0003,2]
[324957029,1714468241688,-151.0,0.0003,2]
[324957030,1714468241697,-151.0,0.0003,2]
[324957031,1714468241708,-273.937009,0.0003,2]
[324957032,1714468241718,-273.937009,0.0003,2]
[324957033,1714468241728,-151.0,0.0003,2]
[324957034,1714468241738,-151.0,0.0003,2]
[324957035,1714468241747,-282.900035,0.0003,2]
[324957036,1714468241757,-151.0,0.0003,2]
[324957037,1714468241766,-481.500133,0.0003,2]
[324957038,1714468241775,-481.500133,0.0003,2]
[324957039,1714468241785,-287.463919,0.0003,2]
[324957040,1714468241795,-287.463919,0.0003,2]
[324957041,1714468241804,-151.001391,0.0003,2]
[324957042,1714468241813,-241.674438,0.0003,2]
[324957043,1714468241823,-241.674438,0.0003,2]
[324957044,1714468241838,-151.0,0.0003,2]
[324957045,1714468241848,-1223.237364,0.0003,2]
[324957046,1714468241857,-1223.237364,0.0003,2]
[324957047,1714468241866,-282.553716,0.0003,2]
[324957048,1714468241878,-282.553716,0.0003,2]
[324957049,1714468241886,-151.0,0.0003,2]
[324957050,1714468241895,-151.841853,0.0003,2]
[324957051,1714468241905,-516.200641,0.0003,2]
[324957052,1714468241914,-516.200641,0.0003,2]
[324957053,1714468241924,-151.0,0.0003,2]
[324957054,1714468241934,-151.0,0.0003,2]
[324957055,1714468241943,-1657.029011,0.0003,2]
[324957056,1714468241953,-1657.029011,0.0003,2]
[324957057,1714468241962,-151.0,0.0003,2]
[324957058,1714468241971,-151.0,0.0003,2]
[324957059,1714468241980,-172.877711,0.0003,2]
[324957060,1714468241990,-172.877711,0.0003,2]
[324957061,1714468242000,-151.0,0.0003,2]
[324957062,1714468242009,-151.0,0.0003,2]
[324957063,1714468242019,-581.433656,0.0003,2]
[324957064,1714468242028,-581.433656,0.0003,2]
[324957065,1714468242037,-583.303269,0.0003,2]
[324957066,1714468242046,-151.0,0.0003,2]
[324957067,1714468242056,-583.303269,0.0003,2]
[324957068,1714468242067,-921.307316,0.0003,2]
[324957069,1714468242076,-921.307316,0.0003,2]
[324957070,1714468242085,-280.0,0.0003,2]
[324957071,1714468242094,-3579.881148,0.0003,2]
[324957072,1714468242103,-3579.881148,0.0003,2]
[324957073,1714468242112,-644.114693,0.0003,2]
[324957074,1714468242122,-644.114693,0.0003,2]
[324957075,1714468242131,-151.0,0.0003,2]
[324957076,1714468242140,-151.423506,0.0003,2]
[324957077,1714468242149,-151.0,0.0003,2]
[324957078,1714468242158,-643.461157,0.0003,2]
[324957079,1714468242168,-151.0,0.0003,2]
[324957080,1714468242178,-3149.40616,0.0003,2]
[324957081,1714468242188,-643.461157,0.0003,2]
[324957082,1714468242197,-3149.40616,0.0003,2]
[324957083,1714468242206,-176.275583,0.0003,2]
[324957084,1714468242216,-153.8921486,0.00030081,7]
[324957085,1714468242227,-157.73975448,0.00030222,7]
[324957086,1714468242236,-150.0,0.00030334,2]
[324957087,1714468242365,-269.9342733,0.00030356,2]
[324957088,1714468242391,-166.666666,0.00030603,2]
[324957089,1714468242400,-1152.0,0.00030617,2]
[324957090,1714468242410,-1096.181492,0.000307,7]
[324957091,1714468242419,-936.3,0.00030946,3]
[324957092,1714468242428,-155.21372883,0.00030949,7]
[324957093,1714468242437,-2500.0,0.00031,2]
[324957094,1714468242446,-153.0,0.00031099,2]
[324957095,1714468242455,-153.0,0.00031099,2]
[324957096,1714468242465,-155.21372883,0.00031142,7]
[324957097,1714468242474,-1000.0,0.000312,7]
[324957098,1714468242484,-157.73975448,0.00031244,7]
[324957099,1714468242493,-449.68632785,0.00031256,7]
[324957100,1714468242502,-449.68632785,0.00031332,7]
[324957101,1714468242512,-620.00000897,0.00031369,2]
[324957102,1714468242521,-410.197095,0.00031507,2]
[324957103,1714468242531,-153.0,0.00031507,2]
[324957104,1714468242540,-153.0,0.00031507,2]
[324957105,1714468242550,-153.0,0.00031507,2]
[324957106,1714468242559,-417.0,0.00031554,2]
[324957107,1714468242570,-150.0,0.00031554,2]
[324957108,1714468242579,-4521.84287996,0.00031578,7]
[324957109,1714468242589,-3000.0,0.00031677,10]
[324957110,1714468242598,-3000.0,0.00031677,10]
[324957111,1714468242608,-287.0,0.000317,4]
[324957112,1714468242617,-150.0,0.000317,2]
[324957113,1714468242627,-1000.0,0.000317,7]
[324957114,1714468242636,-150.0,0.0003177,17]
[324957115,1714468242645,-2684.07607813,0.00031777,10]
[324957118,1714468242655,-63373.7777084,0.00031778,2]
[324957179,1714468244383,-176.275583,0.0002876,2]
[324957180,1714468244393,-176.275583,0.0002877,2]
[324957181,1714468244403,-176.275583,0.0003,2]
[324957182,1714468244412,-4420.69325101,0.00031778,2]
[324957218,1714469432517,-189.3964787,0.00018307,2]
[324957220,1714469432528,-584.2341499,0.00018308,2]
[324957223,1714469432538,-186.580555,0.00018334,2]
[324957224,1714469432547,-163.104642,0.00018371,2]
[324957226,1714469432556,-3000.0,0.0001846,2]
[324957229,1714469432566,-10224.9052004,0.00018744,2]
[324957230,1714469432575,-160.470588,0.00019178,2]
[324957232,1714469432584,-795.65634724,0.00019898,2]
[324957234,1714469432593,-412.70369499,0.000199,2]
[324957236,1714469432602,-2000.0,0.000199,2]
[324957238,1714469432611,-549.92372763,0.000199,2]
[324957240,1714469432620,-820.65,0.0001999,3]
[324957242,1714469432630,-410.32,0.0001999,3]
[324957244,1714469432639,-205.16,0.0001999,3]
[324957246,1714469432648,-802.95279647,0.00019998,2]
[324957247,1714469432657,-154.79876161,0.00019998,2]
[324957249,1714469432666,-155.13000543,0.00019998,2]
[324957251,1714469432675,-819.84050591,0.00019998,2]
[324957253,1714469432684,-218.83347451,0.00019998,2]
[324957255,1714469432694,-330.7036142,0.00019999,2]
[324957257,1714469432703,-180.14499024,0.00019999,2]
[324957259,1714469432711,-180.66138684,0.00019999,2]
[324957261,1714469432720,-422.99435536,0.00019999,2]
[324957263,1714469432729,-44823.29153956,0.0002,2]
[324957265,1714469432741,-22602.90705422,0.0002,2]
[324957267,1714469432750,-154.79876161,0.0002,2]
[324957268,1714469432759,-241.71320654,0.0002,2]
[324957269,1714469432768,-26655.78097763,0.0002,2]
[324957270,1714469432784,-2595.04332262,0.0002,2]
[324957377,1714469439041,-3051.21388193,0.00018307,2]
[324957379,1714469439051,-50749.17569975,0.0002,2]
[324957381,1714469439061,-329.99389325,0.0002,2]
[324957384,1714469439071,-10481.54893926,0.0002,2]
[324957386,1714469439081,-321.919457,0.0002,2]
[324957388,1714469439091,-400.0,0.0002,2]
[324957390,1714469439100,-285.23432465,0.0002,2]
[324957392,1714469439110,-155.18345752,0.0002,2]
[324957394,1714469439119,-525.07533493,0.0002,4]
[324957396,1714469439129,-154.79876161,0.0002,2]
[324957398,1714469439139,-278.367607,0.0002,2]
[324957400,1714469439149,-200.0,0.0002,2]
[324957402,1714469439159,-354.96876268,0.00020912,2]
[324957404,1714469439168,-615.51,0.0002135,3]
[324957406,1714469439178,-1641.3,0.0002136,3]
[324957408,1714469439187,-820.64,0.0002136,3]
[324957410,1714469439197,-410.32,0.0002136,3]
[324957412,1714469439206,-10000.0,0.00021918,2]
[324957414,1714469439215,-305.6041892,0.00022,2]
[324957416,1714469439225,-3000.0,0.00022299,2]
[324957418,1714469439236,-3000.0,0.00022299,2]
[324957420,1714469439247,-3000.0,0.00022299,2]
[324957422,1714469439256,-3000.0,0.00022299,2]
[324957424,1714469439265,-3000.0,0.00022299,2]
[324957426,1714469439278,-311.491043,0.00022466,2]
[324957428,1714469439287,-165.414129,0.00022466,2]
[324957430,1714469439296,-795.65634717,0.00022671,2]
[324957432,1714469439306,-160.0,0.00022725,2]
[324957434,1714469439315,-1370.77204514,0.00023,2]
[324957436,1714469439327,-5000.0,0.00023,3]
[324957438,1714469439336,-320.0,0.00023273,2]
[324957440,1714469439346,-480.0,0.00023821,2]
[324957442,1714469439355,-5000.0,0.000239,3]
[324957444,1714469439365,-693.45686249,0.00024,2]
[324957446,1714469439374,-640.0,0.00024369,2]
[324957448,1714469439384,-157.73975448,0.00024652,2]
[324957450,1714469439399,-500.0,0.00024657,2]
[324957452,1714469439409,-500.0,0.00024657,2]
[324957454,1714469439419,-200.0,0.00024658,15]
[324957456,1714469439428,-200.0,0.00024658,2]
[324957458,1714469439438,-380.0,0.00024658,2]
[324957460,1714469439448,-500.0,0.00024712,2]
[324957462,1714469439457,-157.73975448,0.00024762,2]
[324957464,1714469439467,-500.0,0.00024767,2]
[324957466,1714469439476,-500.0,0.00024821,2]
[324957468,1714469439486,-500.0,0.00024876,2]
[324957470,1714469439495,-308.29704128,0.00024917,2]
[324957472,1714469439504,-500.0,0.00024931,2]
[324957474,1714469439513,-500.0,0.00024986,2]
[324957476,1714469439525,-154.79876161,0.00025,2]
[324957478,1714469439534,-154.79876161,0.00025,2]
[324957480,1714469439544,-154.79876161,0.00025,2]
[324957482,1714469439553,-154.79876161,0.00025,2]
[324957484,1714469439563,-5000.0,0.00025,3]
[324957486,1714469439572,-500.0,0.00025041,2]
[324957488,1714469439581,-449.68632785,0.00025075,2]
[324957490,1714469439591,-500.0,0.00025095,2]
[324957492,1714469439600,-500.0,0.0002515,2]
[324957494,1714469439609,-500.0,0.00025205,2]
[324957496,1714469439618,-155.21372883,0.00025222,2]
[324957498,1714469439629,-500.0,0.0002526,2]
[324957500,1714469439638,-500.0,0.00025315,2]
[324957502,1714469439648,-152.90057792,0.00025329,2]
[324957504,1714469439657,-500.0,0.00025369,2]
[324957506,1714469439666,-500.0,0.00025424,2]
[324957508,1714469439675,-795.65634717,0.00025444,2]
[324957510,1714469439685,-500.0,0.00025479,2]
[324957511,1714469439695,-152.90057792,0.0002548,2]
[324957513,1714469439704,-500.0,0.00025534,2]
[324957516,1714469439714,-500.0,0.00025589,2]
[324957518,1714469439724,-500.0,0.00025643,2]
[324957519,1714469439735,-1193.88148729,0.00025644,2]
[324957522,1714469439744,-449.68632785,0.00025671,2]
[324957524,1714469439753,-500.0,0.00025698,2]
[324957526,1714469439763,-500.0,0.00025753,2]
[324957528,1714469439774,-449.68632785,0.00025783,2]
[324957530,1714469439784,-412.70369497,0.0002579,2]
[324957531,1714469439793,-500.0,0.00025808,2]
[324957532,1714469439803,-155.21372883,0.00025846,2]
[324957533,1714469439812,-153.8921486,0.00025846,2]
[324957534,1714469439822,-500.0,0.00025863,2]
[324957535,1714469439831,-206.56888876,0.00025917,2]
[324957536,1714469439841,-620.00017889,0.00025964,2]
[324957537,1714469439851,-5000.0,0.00026,2]
[324957538,1714469439860,-2822.94323981,0.00026,9]
[324957539,1714469439870,-5000.0,0.00026,5]
[324957540,1714469439879,-155.21372883,0.00026103,2]
[324957541,1714469439889,-152.90057792,0.00026195,2]
[324957542,1714469439899,-155.21372883,0.00026201,2]
[324957543,1714469439908,-152.90057792,0.00026333,2]
[324957544,1714469439917,-152.90057792,0.00026374,2]
[324957545,1714469439927,-157.73975448,0.00026478,2]
[324957546,1714469439936,-648.69407436,0.00026926,2]
[324957547,1714469439945,-3000.0,0.00026999,2]
[324957548,1714469439954,-8529.21181525,0.00027,2]
[324957549,1714469439963,-5000.0,0.00027,5]
[324957550,1714469439973,-620.00000894,0.00027262,2]
[324957552,1714469439982,-152.90057792,0.00027332,2]
[324957554,1714469439992,-152.79752244,0.00027357,2]
[324957556,1714469440002,-166.666666,0.00027397,2]
[324957558,1714469440012,-153.8921486,0.0002747,2]
[324957560,1714469440021,-186.580555,0.00027501,2]
[324957562,1714469440031,-155.21372883,0.00027744,2]
[324957564,1714469440040,-1067.0,0.00027777,3]
[324957566,1714469440050,-157.73975448,0.00027825,2]
[324957568,1714469440059,-1175.66711219,0.000279,2]
[324957570,1714469440069,-220.93587945,0.00028,2]
[324957572,1714469440078,-166.666666,0.00028038,2]
[324957574,1714469440087,-795.65634717,0.00028217,4]